[Event "Susha Chess Blitz Women 2022"]
[Site "Shusha"]
[Date "2022.09.24"]
[Round "2"]
[White "Mammadzada, Gunay"]
[Black "Dzagnidze, Nana"]
[Result "0-1"]
[ECO "B30"]
[WhiteElo "2473"]
[BlackElo "2526"]
[Annotator "TA"]
[PlyCount "134"]
[EventDate "2022.09.24"]
[EventType "tourn"]
[EventCountry "AZE"]
[SourceTitle "playchess.com"]
[Source "ChessBase"]
[SourceQuality "1"]
[TimeControl "180+2"]

{[%evp 9,134,8,52,48,60,55,63,68,78,40,39,44,37,39,43,16,1,0,0,-47,-13,-14,-15,-25,-20,-23,-39,-21,-37,-72,-82,-70,-69,-80,-39,-156,-146,-198,-252,-323,-236,-435,-424,-639,-625,-1333,-557,-509,-233,-223,-212,-270,-284,-254,-119,-456,-474,-557,-242,-377,-210,-293,-295,-295,-281,-637,-700,-712,-715,-685,-702,-675,-649,-1041,-925,-819,-772,-1097,0,0,56,97,52,0,0,0,0,-4,0,0,0,0,0,0,0,0,0,0,0,0,0,0,0,-4,-4,-4,-4,-4,-4,-4,-4,-4,-4,-4,-4,-4,-4,-4,-4,-4,-4,-4,-4,-4,-4,-12843,-4]} 1. e4 {[%emt 0:00:01]} c5 {[%emt 0:00:00]} 2. Nf3 {[%emt 0:00:01]} Nc6 {[%emt 0:00:00]} 3. Bb5 {[%emt 0:00:04]} e6 {[%emt 0:00:01]} 4. O-O {[%emt 0:00:03]} Nge7 {[%emt 0:00:01]} 5. Re1 {[%emt 0:00:01]} b6 {[%emt 0:00:10]} 6. c3 {[%emt 0:00:12] B30: Sicilian: 2...Nc6 3 Bb5, lines without ...g6.} Bb7 {[%emt 0:00:03]} 7. d4 {[%emt 0:00:03] Strongly threatening d5.} cxd4 {[%emt 0:00:04]} 8. cxd4 {[%emt 0:00:02] White is slightly better.} a6 {[%emt 0:00:02] [#]} 9. Bf1 $146 {[%emt 0:00:04]} ({Predecessor:} 9. Ba4 b5 10. Bc2 d5 11. exd5 Nxd5 12. Nc3 Ncb4 13. Be4 Rc8 14. Ng5 Be7 15. h4 {1-0 (30) Bohm,H-Bellon Lopez,J Groningen 1969}) 9... d5 {[%emt 0:00:01]} 10. e5 {[%emt 0:00:06]} Nf5 {[%emt 0:00:02]} 11. Nc3 {[%emt 0:00:02]} Be7 {[%emt 0:00:02]} 12. a3 {[%emt 0:00:16]} (12. g4 Nh4 $11) 12... h5 {[%emt 0:00:03]} 13. g3 {[%emt 0:00:21]} g5 $1 {[%emt 0:00:02] Prevents h4. Threatens to win with ...g4.} 14. h3 {[%emt 0:00:45]} (14. Bd3 $11) 14... b5 {[%emt 0:00:55]} 15. Bg2 {[%emt 0:00:10]} g4 {[%emt 0:00:04]} 16. hxg4 {[%emt 0:00:02]} hxg4 {[%emt 0:00:01]} 17. Nh2 {[%emt 0:00:03][%cal Bf3h2,Bh2g4,Bg4e3][%mdl 32]} Ncxd4 {[%emt 0:00:01] Hoping for ...Qb6.} 18. Nxg4 {[%emt 0:00:07]} Qb6 $36 {[%emt 0:00:01][%cal Of5g3][%mdl 2048] aiming for ...Nxg3! Black has some pressure.} 19. Ne3 {[%emt 0:00:11]} O-O-O {[%emt 0:00:08]} 20. a4 {[%emt 0:00:06]} b4 {[%emt 0:00:10] ...Nxg3 is the strong threat.} 21. a5 {[%emt 0:00:02]} Qc7 {[%emt 0:00:09] Chess con chili.} 22. Na4 {[%emt 0:00:04]} ({White must play} 22. Ne2 $1 $15 Bc5 23. Nf4) 22... Kb8 $17 {[%emt 0:00:04] Black has more active pieces. The white rooks are badly placed.} (22... Qxa5 23. g4 Rdg8 24. Nxf5 (24. gxf5 b3 $11) 24... Nxf5 25. gxf5 $15) 23. Bd2 {[%emt 0:00:14]} (23. b3 $17) 23... Qxa5 $19 {[%emt 0:00:02]} (23... Qxe5 $2 24. Nxf5 Qxf5 25. Bf4+ Qxf4 26. gxf4 $18) 24. Nxf5 {[%emt 0:00:20]} Nxf5 {[%emt 0:00:01]} (24... exf5 25. Be3 Ne6 26. Nc5 $1 Qxc5 27. Bxc5 Bxc5 28. Rc1 $16) 25. Qe2 $2 {[%emt 0:00:02]} (25. Bf4) 25... Qb5 {[%emt 0:00:06]} 26. Qd1 {[%emt 0:00:18]} (26. b3 $142 Qxe2 27. Rxe2) 26... d4 {[%emt 0:00:01] White must now prevent ...Bxg2.} 27. Bf3 {[%emt 0:00:05] [#]} Bxf3 {[%emt 0:00:03]} (27... Ne3 $142 $1 {[%mdl 512]} 28. fxe3 (28. Qe2 Qxe2) 28... dxe3 29. Rxe3 Bg5) 28. Qxf3 {[%emt 0:00:01]} Qb7 {[%emt 0:00:01]} (28... Rh7 $142 29. Qe4 Rdh8) 29. Qxb7+ {[%emt 0:00:04]} Kxb7 {[%emt 0:00:01]} 30. Rec1 {[%emt 0:00:03]} Rc8 {[%emt 0:00:01] Prevents Nc5+.} 31. Kg2 {[%emt 0:00:01] [#]} Rcg8 {[%emt 0:00:17]} (31... d3 $1 $19 {is more deadly. And now ...Rc2 would win.} 32. Rxc8 Rxc8) 32. Kf1 $2 {[%emt 0:00:06][%mdl 8192]} (32. Rc4 $17 {is tougher.}) 32... d3 {[%emt 0:00:21]} 33. b3 {[%emt 0:00:01]} Rh1+ {[%emt 0:00:09]} 34. Kg2 {[%emt 0:00:00]} Rh5 {[%emt 0:00:03]} (34... Rxc1 $142 35. Rxc1 Rd8) 35. Nb2 {[%emt 0:00:03]} Nh4+ {[%emt 0:00:03]} ({Don't go for} 35... Nd4 $2 36. Rh1 Rxh1 37. Rxh1 $19) 36. Kf1 {[%emt 0:00:02]} Nf3 {[%emt 0:00:01]} 37. Nc4 {[%emt 0:00:04]} (37. Be3 Nxe5 38. Bf4) 37... Nxd2+ {[%emt 0:00:18]} 38. Nxd2 {[%emt 0:00:01]} Rh1+ {[%emt 0:00:01]} 39. Kg2 {[%emt 0:00:01]} Rxc1 {[%emt 0:00:01]} 40. Rxc1 {[%emt 0:00:00][%mdl 4096] Endgame [#] KRB-KRN} Bg5 $1 {[%emt 0:00:04]} 41. Rd1 {[%emt 0:00:03]} Bxd2 {[%emt 0:00:03]} 42. Rxd2 {[%emt 0:00:01] KR-KR} Rd8 {[%emt 0:00:02]} 43. Kf3 {[%emt 0:00:01]} Rd5 $2 {[%emt 0:00:01]} (43... a5 $19 44. Ke3 Kc6 45. Rxd3 Rxd3+ 46. Kxd3 Kb5) 44. Ke4 $11 {[%emt 0:00:01]} Kc7 {[%emt 0:00:28]} (44... Kc6 $11 45. Rxd3 Rxd3 46. Kxd3 Kb5) 45. Rxd3 $14 {[%emt 0:00:06]} Ra5 {[%emt 0:00:03]} 46. Rd4 {[%emt 0:00:02]} ({White should play} 46. Rf3 $14) 46... Ra2 $11 {[%emt 0:00:02]} 47. f4 {[%emt 0:00:02]} a5 {[%emt 0:00:02]} 48. Rc4+ {[%emt 0:00:02]} Kd7 {[%emt 0:00:04]} 49. Rc5 {[%emt 0:00:04]} Ra3 {[%emt 0:00:04]} 50. g4 {[%emt 0:00:02]} Rxb3 {[%emt 0:00:07]} 51. Rxa5 {[%emt 0:00:01]} Rb1 {[%emt 0:00:01]} 52. Ra7+ {[%emt 0:00:02]} Ke8 {[%emt 0:00:02]} 53. Rb7 {[%emt 0:00:02]} b3 {[%emt 0:00:01]} 54. Kd3 {[%emt 0:00:04]} b2 {[%emt 0:00:03]} 55. Kc2 Rf1 56. Kxb2 Rxf4 57. Rb8+ Ke7 58. Rb7+ Kf8 59. Rb8+ Kg7 60. Kc3 {Against Rc4+} Rxg4 61. Kd3 Kg6 62. Rb7 Rf4 63. Ke3 Rf1 64. Ke4 Re1+ 65. Kf4 Rc1 66. Rb4 Rf1+ 67. Kg4 $2 {[%mdl 8192]} (67. Ke4 $11) 67... Rg1+ $2 {[%mdl 32768] Weighted Error Value: White=0.80/Black=0.46. Loss on time!?} ({Better is} 67... Rf5 $19 68. Re4 Kg7) 0-1

[Event "Susha Chess Blitz Women 2022"]
[Site "Shusha"]
[Date "2022.09.24"]
[Round "2"]
[White "Zawadzka, Jolanta"]
[Black "Efroimski, Marsel"]
[Result "0-1"]
[ECO "D02"]
[WhiteElo "2401"]
[BlackElo "2462"]
[Annotator "TA"]
[PlyCount "44"]
[EventDate "2022.09.24"]
[EventType "tourn"]
[EventCountry "AZE"]
[SourceTitle "playchess.com"]
[Source "ChessBase"]
[SourceQuality "1"]
[TimeControl "180+2"]

{[%evp 9,44,13,17,25,25,20,16,22,6,12,14,0,-16,-15,0,-52,-39,-91,-78,-123,-109,-212,-172,-175,-185,-181,-192,-184,-175,-216,-216,-210,-110,-255,-247,-487,-306]} 1. d4 {[%emt 0:00:00]} d5 {[%emt 0:00:01]} 2. Nf3 {[%emt 0:00:05]} Nf6 {[%emt 0:00:01]} 3. g3 {[%emt 0:00:06]} e6 {[%emt 0:00:02]} 4. Bg2 {[%emt 0:00:00]} b5 {[%emt 0:00:03]} 5. O-O {[%emt 0:00:02]} Be7 {[%emt 0:00:02]} 6. a4 {[%emt 0:00:02] A46: 1 d4 Nf6 2 Nf3 e6: Torre, London and Colle Systems.} b4 {[%emt 0:00:01]} 7. c4 {[%emt 0:00:02]} bxc3 {[%emt 0:00:01]} 8. bxc3 {[%emt 0:00:15] The position is equal.} O-O {[%emt 0:00:10]} 9. c4 {[%emt 0:00:01]} a5 {[%emt 0:00:08] [#]} 10. c5 $146 {[%emt 0:00:06]} ({Predecessor:} 10. Ba3 Na6 11. Ne5 Bxa3 12. Nxa3 Nb4 13. cxd5 Nfxd5 14. Qd2 Ba6 15. Rfc1 Qd6 16. Nac4 Bxc4 17. Nxc4 {1-0 (113) Kozak,A (2535)-Rosen,E (2359) Chess.com INT 2022}) 10... Nc6 {[%emt 0:00:05]} 11. Nc3 {[%emt 0:00:06]} Ba6 {[%emt 0:00:01]} 12. h3 {[%emt 0:00:19]} (12. Bf4 $11) 12... Rb8 {[%emt 0:00:13]} 13. g4 {[%emt 0:00:14]} ({Better is} 13. Nb5 $15) 13... Ne4 $17 {[%emt 0:00:06]} 14. Bd2 {[%emt 0:00:39]} Bf6 {[%emt 0:00:01] Black is much more active.} 15. Qc2 {[%emt 0:00:23]} (15. Be1 $17) 15... Bxd4 {[%emt 0:00:30] [#] ...Nb4 is the strong threat.} 16. Nxe4 {[%emt 0:00:18]} dxe4 {[%emt 0:00:00]} (16... Bxa1 17. Neg5 g6 18. Rxa1 $15) 17. Qxe4 {[%emt 0:00:17]} Bxa1 {[%emt 0:00:01]} 18. Rxa1 {[%emt 0:00:12]} Qd5 {[%emt 0:00:10]} 19. Qc2 {[%emt 0:00:05] [#] aiming for Ng5.} Nb4 {[%emt 0:00:19]} ({Don't play} 19... Bxe2 20. Ng5 Bd3 21. Bxd5 $18) 20. Qc3 {[%emt 0:00:15]} Qc4 {[%emt 0:00:10]} ({Not} 20... Bxe2 21. Ne5 Qd8 22. c6 $17) (20... Bb7 $19 {Strongly threatening ...f6.} 21. g5 Qe4) 21. Qe5 {[%emt 0:00:07]} (21. Ne5 $17 Qxc3 22. Bxc3) 21... Qxe2 $19 {[%emt 0:00:40]} 22. Qh5 $2 {[%emt 0:00:07]} (22. Qxe2 Bxe2 23. Nd4) 22... Qd3 {[%emt 0:00:18] Weighted Error Value: White=0.61/Black=0.16 (very precise)} 0-1

[Event "Susha Chess Blitz Women 2022"]
[Site "Shusha"]
[Date "2022.09.24"]
[Round "2"]
[White "Mammadova, Gulnar"]
[Black "Fataliyeva, Ulviyya"]
[Result "1-0"]
[ECO "B90"]
[WhiteElo "2382"]
[BlackElo "2408"]
[Annotator "TA"]
[PlyCount "82"]
[EventDate "2022.09.24"]
[EventType "tourn"]
[EventCountry "AZE"]
[SourceTitle "playchess.com"]
[Source "ChessBase"]
[SourceQuality "1"]
[TimeControl "180+2"]

{[%evp 15,82,17,30,2,19,33,39,-7,59,61,60,29,29,32,89,33,26,8,6,0,38,35,43,-27,-21,-33,37,0,0,0,57,-93,-85,-95,114,118,91,36,35,34,40,37,43,0,87,0,45,-8,-8,-10,186,0,94,94,117,0,87,21,60,30,91,0,288,253,230,19,1287,1269,29995]} 1. e4 {[%emt 0:00:02]} c5 {[%emt 0:00:03]} 2. Nf3 {[%emt 0:00:03]} d6 {[%emt 0:00:01]} 3. d4 {[%emt 0:00:01]} cxd4 {[%emt 0:00:00]} 4. Nxd4 {[%emt 0:00:01]} Nf6 {[%emt 0:00:01]} 5. Nc3 {[%emt 0:00:02]} a6 {[%emt 0:00:01]} 6. Be3 {[%emt 0:00:22]} e5 {[%emt 0:00:03]} 7. Nb3 {[%emt 0:00:01]} Be6 8. Qd2 Be7 {[%emt 0:00:17]} 9. f4 {[%emt 0:00:09] B90: Sicilian Najdorf: Unusual White 6th moves, 6 Be3 Ng4 and 6 Be3 e5.} Qc7 {[%emt 0:00:21]} 10. O-O-O {[%emt 0:00:23]} Nbd7 {[%emt 0:00:05]} 11. Kb1 {[%emt 0:00:29]} (11. f5 $14 Bc4 12. Bxc4 Qxc4 13. Qd3) 11... exf4 {[%emt 0:00:24]} (11... b5 $11) 12. Bxf4 $14 {[%emt 0:00:01]} Ne5 {[%emt 0:00:01]} 13. Nd4 {[%emt 0:00:10]} O-O {[%emt 0:00:09] [#]} 14. Nf5 $146 {[%emt 0:00:07]} ({Predecessor:} 14. g4 Rac8 15. g5 Nfd7 16. Nf5 Bxf5 17. Nd5 Qxc2+ 18. Qxc2 Rxc2 19. Nxe7+ Kh8 20. Nxf5 Rf2 21. Bg3 Rf3 22. Be2 {1-0 (22) Nitin,S (2381)-Almeida Junior,A (2174) Chess.com INT 2020}) 14... Rfd8 {[%emt 0:00:27]} (14... Bxf5 $14 15. exf5 Rac8) 15. Nxe7+ {[%emt 0:00:15]} (15. g4 $1 $16) 15... Qxe7 {[%emt 0:00:01]} 16. h3 {[%emt 0:00:17]} b5 {[%emt 0:00:06][%cal Bb7b5,Bb5b4][%mdl 32]} 17. g4 {[%emt 0:00:18]} Rac8 {[%emt 0:00:48]} (17... b4 $5 {[%cal Rb4c3]} 18. Nd5 Bxd5 19. exd5 a5 $14) 18. a3 {[%emt 0:00:26]} Rb8 {[%emt 0:00:22]} 19. Nd5 {[%emt 0:00:14]} (19. Qd4 $14) 19... Bxd5 $11 {[%emt 0:00:09]} 20. exd5 {[%emt 0:00:01]} a5 {[%emt 0:00:10]} (20... b4 $15) 21. Bd3 {[%emt 0:00:11]} b4 {[%emt 0:00:03] And now ...bxa3 would win.} 22. a4 {[%emt 0:00:01]} Nfd7 {[%emt 0:00:05]} (22... Nxd3 $11 23. Qxd3 Qe4) 23. Bg5 {[%emt 0:00:05]} (23. Bb5 $14 {keeps the upper hand.}) 23... f6 $17 {[%emt 0:00:01]} 24. Be3 {[%emt 0:00:01]} Nc5 $2 {[%emt 0:00:02]} (24... b3 $17 {keeps the pressure on.} 25. c3 Qe8) 25. Bxc5 $16 {[%emt 0:00:04]} dxc5 {[%emt 0:00:01][%cal Bd6c5,Bc5c4,Bc4c3][%mdl 32] [#]} 26. Bb5 {[%emt 0:00:04]} ({White should try} 26. d6 $1 $16 {[%cal Rd6e7]} Qf7 27. Be4) 26... Qd6 {[%emt 0:00:06]} 27. Rhf1 {[%emt 0:00:03]} c4 {[%emt 0:00:02][%cal Oc4c3]} 28. g5 {[%emt 0:00:02]} c3 $1 {[%emt 0:00:02]} 29. Qf4 {[%emt 0:00:02][%cal Rg5f6]} (29. Qe3 $5 {[%cal Rg5f6]}) 29... Rf8 {[%emt 0:00:05]} (29... fxg5 $1 $11 30. Qxg5 cxb2 31. Kxb2 Qc7) 30. Qe3 {[%emt 0:00:04]} ({Better is} 30. gxf6 $16 {Threatens to win with Qg3.} Rxf6 31. Qe4) 30... cxb2 {[%emt 0:00:02]} 31. h4 {[%emt 0:00:01]} (31. gxf6 $14 gxf6 32. Rg1+ (32. Kxb2 Rxb5 33. Qg1+ Kh8 $17) 32... Kh8 33. Rg2) 31... fxg5 $11 {[%emt 0:00:03]} 32. hxg5 {[%emt 0:00:02]} Ng6 $2 {[%emt 0:00:01]} (32... Rxf1 $1 $11 33. Rxf1 Qxd5) 33. Qd4 $2 {[%emt 0:00:03]} ({White should play} 33. Qe6+ $18 Qxe6 34. dxe6) 33... Ne7 {[%emt 0:00:02]} (33... Ne5 $11 {keeps the balance.}) 34. Bc4 $16 {[%emt 0:00:02]} Rxf1 {[%emt 0:00:01]} 35. Bxf1 {[%emt 0:00:01]} (35. Rxf1 $16 {Strongly threatening Qf4.} Ng6 36. Re1) 35... Rf8 {[%emt 0:00:02] [#] Against Qf4} (35... b3 $11 36. c4 Nf5) 36. Bh3 {[%emt 0:00:02]} (36. Bd3 $1 $16) 36... Nf5 {[%emt 0:00:04]} 37. Qe4 {[%emt 0:00:01]} (37. Qd3 $5 {[%cal Rh3f5]} g6 38. Bg4 $14) 37... g6 {[%emt 0:00:01]} (37... Qg3 $1 $11 {remains equal.} 38. Rd3 (38. Bxf5 {leads to mate.} Qa3 39. c4 b3 40. Be6+ Kh8) 38... Qxg5 39. Qe6+ Rf7 40. Qc8+ Rf8 41. Qe6+ Rf7 42. Kxb2 Qf6+ 43. Qxf6 Rxf6) 38. Rf1 {[%emt 0:00:03]} (38. Qe6+ $16 Qxe6 39. dxe6) 38... Kg7 $2 {[%emt 0:00:02][%mdl 8192]} (38... b3 $11 {and Black is okay.}) 39. Bxf5 $18 gxf5 {[%emt 0:00:02]} 40. Qd4+ {[%emt 0:00:05] Really sharp!} (40. Rxf5 $18 Rxf5 41. Qxf5) 40... Kg6 $2 {[%emt 0:00:01][%mdl 8192]} (40... Kg8 $11) 41. Rh1 {[%emt 0:00:01] Threatening mate with Rh6+.} Kxg5 {Weighted Error Value: White=0.50/Black=0.53} 1-0

[Event "Susha Chess Blitz Women 2022"]
[Site "Shusha"]
[Date "2022.09.24"]
[Round "2"]
[White "Balajayeva, Khanim"]
[Black "Beydullayeva, Govhar"]
[Result "1-0"]
[ECO "A06"]
[WhiteElo "2379"]
[BlackElo "2346"]
[Annotator "TA"]
[PlyCount "79"]
[EventDate "2022.09.24"]
[EventType "tourn"]
[EventCountry "AZE"]
[SourceTitle "playchess.com"]
[Source "ChessBase"]
[SourceQuality "1"]
[TimeControl "180+2"]

{[%evp 9,79,18,26,0,1,6,0,0,0,-1,17,0,0,-14,-8,-8,22,8,2,-10,0,-36,-27,-35,-29,-32,0,-42,-21,-68,-65,-62,-102,-274,-260,-304,-286,-357,-361,-352,-249,-406,-380,-396,-253,-288,0,-400,-384,-391,-384,-410,-370,-384,537,-131,-58,-141,-115,-141,-130,-398,-331,-553,-531,-769,0,0,71,78,742,742]} 1. Nf3 {[%emt 0:00:02]} d5 {[%emt 0:00:01]} 2. g3 {[%emt 0:00:01]} Bg4 {[%emt 0:00:04]} 3. Bg2 {[%emt 0:00:02]} Nd7 {[%emt 0:00:03]} 4. O-O {[%emt 0:00:08]} c6 {[%emt 0:00:03]} 5. d3 {[%emt 0:00:04]} e5 {[%emt 0:00:05]} 6. h3 {[%emt 0:00:01] A07: Réti Opening: New York and Capablanca Systems.} (6. e4 {looks sharper.} dxe4 7. dxe4 Bc5 8. Nbd2) 6... Bxf3 {[%emt 0:00:04]} 7. Bxf3 {[%emt 0:00:03]} Ngf6 {[%emt 0:00:01]} 8. Nd2 {[%emt 0:00:06] The position is equal.} Bc5 {[%emt 0:00:03]} 9. e4 {[%emt 0:00:10]} dxe4 {[%emt 0:00:03]} 10. Nxe4 {[%emt 0:00:10]} Nxe4 {[%emt 0:00:02]} 11. Bxe4 {[%emt 0:00:01]} O-O {[%emt 0:00:07] [#]} 12. Bg2 $146 {[%emt 0:00:07]} ({Predecessor:} 12. Qh5 g6 13. Qe2 Re8 14. Rb1 a5 15. b3 Nf8 16. Bg2 Qc7 17. a3 {1-0 (48) Martin Fuentes,A (2400)-Presa Villa,A (2098) Oviedo 2022}) 12... Qb6 {[%emt 0:00:07]} 13. Rb1 {[%emt 0:00:09][%cal Ob2b4]} a5 {[%emt 0:00:01]} 14. Qg4 {[%emt 0:00:10] [#] Strongly threatening Bh6.} Nf6 {[%emt 0:00:02][%cal Bd7f6,Bf6d5,Bd5c3][%mdl 32]} 15. Qf5 {[%emt 0:00:01]} Rfe8 {[%emt 0:00:02]} 16. h4 {[%emt 0:00:30]} Re6 {[%emt 0:00:45]} 17. h5 {[%emt 0:00:07]} Nd5 {[%emt 0:00:01]} 18. Qg4 {[%emt 0:00:10]} Rf6 {[%emt 0:00:12][%cal Rf6f2]} 19. Qe2 {[%emt 0:00:07]} (19. Bf3 $11) 19... Nc3 $1 $15 {[%emt 0:00:26]} 20. bxc3 {[%emt 0:00:01]} Qxb1 {[%emt 0:00:01]} 21. d4 $2 {[%emt 0:00:40]} (21. Be3 $17 Qb6 22. Bg5) 21... exd4 $19 {[%emt 0:00:15]} 22. Bg5 {[%emt 0:00:02]} Re6 {[%emt 0:00:06]} ({Much less strong is} 22... Qxa2 23. Bxf6 Qe6 24. Qxe6 fxe6 25. Be5 $18 (25. cxd4 gxf6 26. dxc5 a4 $18)) 23. Qg4 {[%emt 0:00:12]} Qxc2 {[%emt 0:00:09]} 24. cxd4 {[%emt 0:00:01]} Be7 {[%emt 0:00:09] aiming for ...Bxg5.} 25. Be3 $2 {[%emt 0:00:06]} (25. d5 cxd5 26. Bxd5) 25... Rd8 {[%emt 0:00:20]} 26. Qf4 {[%emt 0:00:08]} Bd6 {[%emt 0:00:15] Against Qc7} 27. Qg5 {[%emt 0:00:02]} Be7 {[%emt 0:00:02]} 28. Qf4 {[%emt 0:00:00]} Qxa2 {[%emt 0:00:05]} 29. Qc7 {[%emt 0:00:01]} b5 {[%emt 0:00:07]} 30. Bxc6 {[%emt 0:00:17]} Qc4 {[%emt 0:00:01]} 31. d5 {[%emt 0:00:00]} Rf6 {[%emt 0:00:14][%mdl 8192]} (31... Rxd5 $19 {avoids the disaster.} 32. Rc1 {[#]} Rxc6 $1 {[%mdl 512]} 33. Rxc4 Rxc7 34. Rxc7 Bf8) 32. Qxa5 $2 {[%emt 0:00:08]} (32. Qxe7 $18 {[%cal Re7d8]} Rc8 33. Rc1) 32... Rc8 {[%emt 0:00:04]} (32... h6 $17 33. Rc1 Qg4) 33. Qd2 {[%emt 0:00:10]} (33. Qa7 $15 Bf8 34. Qd7 Rfxc6 35. dxc6 Qxc6 36. Rd1) 33... b4 {[%emt 0:00:02]} 34. Rc1 {[%emt 0:00:03]} Qg4 {[%emt 0:00:03] Hoping for ...Bd6.} (34... Rcxc6 $2 35. dxc6 Rxc6 36. Rxc4 $18) ({Resist} 34... Rfxc6 35. Rxc4 Rxc4 36. d6 $18) 35. Rf1 $2 {[%emt 0:00:06][%mdl 8192]} (35. Qd1 $17 Qxd1+ 36. Rxd1) 35... Qxh5 {[%emt 0:00:01]} 36. Bg5 $2 {[%emt 0:00:01]} (36. Bb5 {might work better.}) 36... Rfxc6 {[%emt 0:00:01]} 37. dxc6 Bxg5 $2 {[%emt 0:00:01]} ({Better is} 37... Qxg5 $19 38. Qxg5 Bxg5) 38. Qd7 $11 {[%emt 0:00:05]} Rf8 {[%emt 0:00:05]} (38... Rd8 $11 39. Re1 Kf8) 39. c7 $16 {[%emt 0:00:01][%mdl 1024] White has strong compensation. White is more active.} Be3 $2 {[%emt 0:00:03][%mdl 8192]} 40. c8=Q {[%emt 0:00:03] Weighted Error Value: White=0.65/Black=0.68} ({Inferior is} 40. fxe3 Qc5 $11) 1-0

[Event "Susha Chess Blitz Women 2022"]
[Site "Shusha"]
[Date "2022.09.24"]
[Round "2"]
[White "Ozturk Orenli, Kubra"]
[Black "Arabidze, Meri"]
[Result "1/2-1/2"]
[ECO "B22"]
[WhiteElo "2319"]
[BlackElo "2422"]
[Annotator "TA"]
[PlyCount "72"]
[EventDate "2022.09.24"]
[EventType "tourn"]
[EventCountry "AZE"]
[SourceTitle "playchess.com"]
[Source "ChessBase"]
[SourceQuality "1"]
[TimeControl "180+2"]

{[%evp 13,72,14,14,-20,6,4,11,12,14,0,0,15,0,-5,-3,-42,-44,-48,-9,-23,-25,-35,-24,-30,-12,-17,0,-15,0,-11,-12,-91,-93,-84,-84,-90,-84,-84,-103,-122,-122,-126,-128,-135,-52,-58,-20,-27,-20,-20,-20,-52,-40,-39,0,-49,0,-45,0,-37,0]} 1. e4 {[%emt 0:00:00]} c5 {[%emt 0:00:01]} 2. c3 {[%emt 0:00:01]} d5 {[%emt 0:00:01]} 3. exd5 {[%emt 0:00:01]} Qxd5 {[%emt 0:00:00]} 4. d4 {[%emt 0:00:01]} Nf6 {[%emt 0:00:02]} 5. Nf3 {[%emt 0:00:01]} e6 {[%emt 0:00:03]} 6. Na3 {[%emt 0:00:02][%cal Bb1a3,Ba3c4,Bc4e3][%mdl 32]} a6 {[%emt 0:00:02]} 7. Nc4 {[%emt 0:00:01]} Nbd7 {[%emt 0:00:01]} 8. Bd3 {[%emt 0:00:42] B22: Sicilian: 2 c3.} b5 {[%emt 0:00:13]} 9. Ne3 {[%emt 0:00:01]} Qc6 {[%emt 0:00:02]} 10. a4 {[%emt 0:00:07] The position is equal.} Bb7 {[%emt 0:00:08] [#]} 11. axb5 $146 {[%emt 0:00:13]} (11. O-O {keeps more tension.} c4 12. Be2 Bd6 13. b3) ({Predecessor:} 11. O-O c4 12. Be2 Bd6 13. axb5 axb5 14. Rxa8+ Bxa8 15. b3 Nd5 16. bxc4 Nxe3 17. fxe3 bxc4 {0-1 (35) Nun,J (2365)-Boensch,U (2410) Houstka 1982}) 11... axb5 {[%emt 0:00:01]} 12. Rxa8+ {[%emt 0:00:02]} Bxa8 {[%emt 0:00:01]} 13. dxc5 {[%emt 0:00:03]} Bxc5 {[%emt 0:00:13]} 14. Qe2 {[%emt 0:00:09]} b4 {[%emt 0:00:18]} 15. Bd2 {[%emt 0:00:23][%cal Bc1d2,Bd2c3,Bc3d4][%mdl 32]} Bxe3 {[%emt 0:01:01]} 16. fxe3 {[%emt 0:00:11]} bxc3 {[%emt 0:00:20]} 17. Bxc3 {[%emt 0:00:04]} O-O {[%emt 0:00:03]} 18. O-O {[%emt 0:00:16]} Ne4 {[%emt 0:00:03]} 19. Bd4 {[%emt 0:00:13]} f6 {[%emt 0:00:15]} 20. Bb5 {[%emt 0:00:23]} Qb7 {[%emt 0:00:16]} 21. Qc4 {[%emt 0:00:08]} Kh8 {[%emt 0:00:16] And now ...Nd6 would win.} 22. Ba4 {[%emt 0:00:20] [#]} (22. Ba6 $11 Qd5 23. Rc1) 22... Nd2 $1 $17 {[%emt 0:00:04]} 23. Qxe6 {[%emt 0:00:06]} Nxf1 {[%emt 0:00:04]} 24. Qxd7 {[%emt 0:00:09]} Qxd7 {[%emt 0:00:14]} 25. Bxd7 {[%emt 0:00:01] This bishop pair is nice.} Bxf3 {[%emt 0:00:04]} 26. gxf3 {[%emt 0:00:05][%mdl 4096] Endgame [#] KRN-KB} Nd2 {[%emt 0:00:01]} 27. Kf2 {[%emt 0:00:02]} Nb3 {[%emt 0:00:02][%cal Bd2b3,Bb3c1,Bc1d3,Bd3e5][%mdl 32] White must now prevent ...Rd8.} 28. Bc3 {[%emt 0:00:01]} Rd8 {[%emt 0:00:04]} (28... Nc5 $17 29. Bf5 Na4) 29. Bb5 {[%emt 0:00:04]} Nc1 30. Bc4 {[%emt 0:00:06]} Nd3+ {[%emt 0:00:06]} 31. Ke2 {[%emt 0:00:02]} Ne5 {[%emt 0:00:01]} 32. Be6 {[%emt 0:00:04]} Re8 {[%emt 0:00:01]} 33. Bd5 {[%emt 0:00:02]} Rd8 {[%emt 0:00:04]} 34. Be6 {[%emt 0:00:00]} Re8 {[%emt 0:00:00]} 35. Bd5 {[%emt 0:00:01]} Rd8 {[%emt 0:00:01]} 36. Be6 {[%emt 0:00:00]} Re8 {[%emt 0:00:00] Weighted Error Value: White=0.11 (very precise) /Black=0.14 (very precise)} 1/2-1/2